fUSD/lending_fUSD_20260703
["ID","MTS","AMOUNT","RATE_DAILY","PERIOD"]
[426958042,1783063840000,-251.638202,0.00026453,2]
[426958041,1783063840000,-251.638202,0.00026453,2]
[426958044,1783063840000,-251.638202,0.00026453,2]
[426958053,1783063840000,-185.37,0.00026454,2]
[426958045,1783063840000,-749.770396,0.00026453,2]
[426958070,1783063840000,-248.85,0.00026487,2]
[426958062,1783063840000,-573.75,0.00026464,2]
[426958072,1783063840000,-185.37,0.00026487,2]
[426958104,1783063840000,-1500.0,0.000267,9]
[426958103,1783063840000,-329.62015671,0.000267,2]
[426958105,1783063840000,-163.33736492,0.000267,2]
[426958109,1783063840000,-3967.13439424,0.0002676,2]
[426958106,1783063840000,-152.42114286,0.000267,2]
[426958108,1783063840000,-487.931332,0.00026756,30]
[426958110,1783063840000,-157.172891,0.00026767,2]
[426958111,1783063840000,-500.0,0.00026779,2]
[426958112,1783063840000,-516.69265379,0.00026779,2]
[426958113,1783063840000,-500.0,0.00026779,2]
[426958115,1783063840000,-500.0,0.00026779,2]
[426958125,1783063840000,-3000.0,0.0002679,120]
[426958114,1783063840000,-500.0,0.00026779,2]
[426958116,1783063840000,-500.0,0.00026779,2]
[426958117,1783063840000,-500.0,0.00026779,2]
[426958119,1783063840000,-500.0,0.00026779,2]
[426958120,1783063840000,-500.0,0.00026779,2]
[426958118,1783063840000,-586.14956433,0.00026779,2]
[426958121,1783063840000,-335.69369789,0.00026779,2]
[426958122,1783063840000,-152.0,0.00026783,3]
[426958124,1783063840000,-594.6,0.0002679,7]
[426958123,1783063840000,-598.17,0.0002679,7]
[426958074,1783063840000,-151.0,0.00026487,2]
[426958102,1783063840000,-321.35134903,0.000267,2]
[426958098,1783063840000,-157.172891,0.00026688,2]
[426958107,1783063840000,-321.87383993,0.00026736,2]
[426958101,1783063840000,-294.91857052,0.000267,2]
[426958077,1783063840000,-2013.0,0.000265,2]
[426958075,1783063840000,-185.38,0.00026487,2]
[426958076,1783063840000,-10853.25428127,0.000265,2]
[426958081,1783063840000,-2000.0,0.0002653,2]
[426958100,1783063840000,-10853.25428127,0.000267,2]
[426958083,1783063840000,-166.65,0.00026543,2]
[426958082,1783063840000,-300.0,0.00026532,2]
[426958126,1783063840000,-728.91394347,0.0002679,120]
[426958084,1783063840000,-450.65132243,0.00026558,2]
[426958086,1783063840000,-353.48973932,0.00026564,2]
[426958088,1783063840000,-1001.60883952,0.00026571,2]
[426958087,1783063840000,-2673.8970037,0.00026564,2]
[426958080,1783063840000,-2000.0,0.0002653,2]
[426958090,1783063840000,-200.0,0.00026585,2]
[426958085,1783063840000,-155.76472,0.00026558,2]
[426958099,1783063840000,-2814.0,0.00026693,5]
[426958097,1783063840000,-211.35179406,0.00026679,2]
[426958095,1783063840000,-1000.0,0.000266,9]
[426958093,1783063840000,-200.0,0.00026585,2]
[426958096,1783063840000,-157.172891,0.00026609,2]
[426958091,1783063840000,-200.0,0.00026585,2]
[426958089,1783063840000,-200.0,0.00026585,2]
[426958092,1783063840000,-200.0,0.00026585,2]
[426958094,1783063840000,-200.0,0.00026585,2]
[426958141,1783063841000,-437.418976,0.00026799,2]
[426958138,1783063841000,-500.0,0.00026799,2]
[426958142,1783063841000,-437.418976,0.00026799,2]
[426958139,1783063841000,-500.0,0.00026799,2]
[426958140,1783063841000,-437.418976,0.00026799,2]
[426958137,1783063841000,-257.41851398,0.00026799,2]
[426958133,1783063841000,-567.99677537,0.00026799,2]
[426958131,1783063841000,-500.0,0.00026799,2]
[426958132,1783063841000,-500.0,0.00026799,2]
[426958127,1783063841000,-494.16095271,0.00026799,2]
[426958130,1783063841000,-500.0,0.00026799,2]
[426958128,1783063841000,-500.0,0.00026799,2]
[426958136,1783063841000,-500.0,0.00026799,2]
[426958135,1783063841000,-500.0,0.00026799,2]
[426958143,1783063841000,-437.418976,0.00026799,2]
[426958134,1783063841000,-445.79639571,0.00026799,2]
[426958144,1783063841000,-151.0,0.00026799,2]
[426958151,1783063841000,-304.03379,0.00026799,2]
[426958147,1783063841000,-151.0,0.00026799,2]
[426958163,1783063841000,-17923.38936501,0.000268,2]
[426958162,1783063841000,-1158.02937822,0.000268,2]
[426958160,1783063841000,-230720.93265562,0.000268,2]
[426958159,1783063841000,-3516.0,0.000268,5]
[426958156,1783063841000,-300.0,0.00026799,10]
[426958155,1783063841000,-300.0,0.00026799,10]
[426958154,1783063841000,-151.0,0.00026799,2]
[426958161,1783063841000,-1121209.05521565,0.000268,2]
[426958157,1783063841000,-300.0,0.00026799,10]
[426958149,1783063841000,-304.03379,0.00026799,2]
[426958145,1783063841000,-151.0,0.00026799,2]
[426958148,1783063841000,-304.03379,0.00026799,2]
[426958146,1783063841000,-151.0,0.00026799,2]
[426958150,1783063841000,-304.03379,0.00026799,2]
[426958153,1783063841000,-151.0,0.00026799,2]
[426958158,1783063841000,-3703.0,0.000268,5]
[426958152,1783063841000,-151.0,0.00026799,2]
[426958174,1783063843000,-771.60233025,0.000268,2]
[426958173,1783063843000,-1009.41,0.000268,2]
[426958172,1783063843000,-1208.68179918,0.000268,2]
[426958171,1783063843000,-8780.57063921,0.000268,2]
[426958170,1783063843000,-207.64359543,0.0002679,2]
[426958169,1783063843000,-179.43,0.00024689,2]
[426958175,1783063843000,-742.5,0.000268,2]
[426958188,1783063846000,-1304.1666,0.00023931,2]
[426958190,1783063846000,-16449.6150938,0.000268,2]
[426958191,1783063846000,-3290.42,0.000268,2]
[426958189,1783063846000,-4687.04467628,0.00024496,2]
[426958199,1783064928000,7937.48717825,0.0002,120]
[426958202,1783064937000,-171.69,0.00016712,2]
[426958200,1783064937000,-869.0,0.000164,2]
[426958201,1783064937000,-204.84015861,0.00016612,2]
[426958231,1783065032000,-234.3171581,0.00021029,2]
[426958230,1783065032000,-7497.51607574,0.00021,2]
[426958233,1783065032000,-150.0,0.00021918,2]
[426958228,1783065032000,-6519.95976523,0.00021,2]
[426958232,1783065032000,-298.42495575,0.00021597,2]
[426958226,1783065032000,-237.64,0.000209,2]
[426958229,1783065032000,-4063.46036074,0.00021,2]
[426958227,1783065032000,-1208.85690123,0.000209,30]
[426958224,1783065032000,-153.0,0.000204,2]
[426958222,1783065032000,-12227.90108087,0.0002,2]
[426958225,1783065032000,-22500.18091096,0.000207,2]
[426958223,1783065032000,-152.0,0.0002,2]
[426958218,1783065032000,-850.0,0.00019999,2]
[426958220,1783065032000,-77266.35653405,0.0002,2]
[426958217,1783065032000,-226.45261896,0.000199,2]
[426958219,1783065032000,-7985.64481105,0.0002,2]
[426958216,1783065032000,-234.3171581,0.00019812,3]
[426958215,1783065032000,-150.01,0.00019355,7]
[426958213,1783065032000,-155.1,0.0001806,2]
[426958214,1783065032000,-752.6964,0.00019,2]
[426958235,1783065032000,-500.0,0.00022,3]
[426958212,1783065032000,-260.49137357,0.00017596,2]
[426958221,1783065032000,-4117.30003838,0.0002,2]
[426958234,1783065032000,-1129.12,0.00022,10]
[426958271,1783065032000,-120.91041674,0.00023423,2]
[426958237,1783065032000,-1903.61004027,0.0002224,2]
[426958267,1783065032000,-279.51490403,0.00023423,2]
[426958270,1783065032000,-583.66936917,0.00023423,2]
[426958269,1783065032000,-500.0,0.00023423,2]
[426958268,1783065032000,-220.48509597,0.00023423,2]
[426958266,1783065032000,-231.14509597,0.00023423,2]
[426958260,1783065032000,-268.85490403,0.00023423,2]
[426958258,1783065032000,-500.0,0.00023423,2]
[426958253,1783065032000,-500.0,0.00023423,2]
[426958256,1783065032000,-500.0,0.00023423,2]
[426958252,1783065032000,-282.05641106,0.00023423,2]
[426958250,1783065032000,-1687.95,0.00023264,2]
[426958236,1783065032000,-13185.42995973,0.0002224,2]
[426958249,1783065032000,-202.95147431,0.00023264,2]
[426958246,1783065032000,-150.0,0.00023014,2]
[426958247,1783065032000,-251.02624265,0.0002325,2]
[426958243,1783065032000,-207.02,0.00022631,2]
[426958245,1783065032000,-5000.0,0.00022818,2]
[426958244,1783065032000,-181.73,0.00022803,2]
[426958241,1783065032000,-266.866933,0.0002257,2]
[426958238,1783065032000,-5194.0,0.000224,5]
[426958242,1783065032000,-346.45352685,0.00022596,2]
[426958240,1783065032000,-9999.99,0.00022562,2]
[426958239,1783065032000,-912.99,0.00022466,2]
[426958248,1783065032000,-500.0,0.00023264,2]
[426958280,1783065038000,-379.08958326,0.00023423,2]
[426958281,1783065038000,-500.0,0.00023423,2]
[426958282,1783065038000,-500.0,0.00023423,2]
[426958284,1783065038000,-500.0,0.00023423,2]
[426958285,1783065038000,-500.0,0.00023423,2]
[426958283,1783065038000,-500.0,0.00023423,2]
[426958288,1783065038000,-500.0,0.00023423,2]
[426958286,1783065038000,-500.0,0.00023423,2]
[426958287,1783065038000,-500.0,0.00023423,2]
[426958289,1783065038000,-351.8915047,0.00023423,2]
[426958306,1783065043000,-148.1084953,0.00023423,2]
[426958307,1783065043000,-458.90441815,0.00023423,2]
[426958309,1783065043000,-500.0,0.00023423,2]
[426958310,1783065043000,-54.89658115,0.00023423,2]
[426958308,1783065043000,-41.09558185,0.00023423,2]
[426958351,1783065046000,-447.77851807,0.00023423,2]
[426958335,1783065046000,-445.10341885,0.00023423,2]
[426958337,1783065046000,-500.0,0.00023423,2]
[426958339,1783065046000,-500.0,0.00023423,2]
[426958355,1783065046000,-500.0,0.00023423,2]
[426958349,1783065046000,-52.22148193,0.00023423,2]
[426958343,1783065046000,-500.0,0.00023423,2]
[426958341,1783065046000,-500.0,0.00023423,2]
[426958347,1783065046000,-525.74123209,0.00023423,2]
[426958360,1783065046000,-286.38768393,0.00023423,2]
[426958358,1783065046000,-315.92115607,0.00023423,2]
[426958356,1783065046000,-500.0,0.00023423,2]
[426958345,1783065046000,-500.0,0.00023423,2]
[426958357,1783065046000,-184.07884393,0.00023423,2]
[426958354,1783065046000,-500.0,0.00023423,2]
[426958359,1783065046000,-500.0,0.00023423,2]
[426958362,1783065047000,-107.12518393,0.00023423,2]
[426958361,1783065047000,-213.61231607,0.00023423,2]
[426958364,1783065063000,579.0,0.000164,2]
[426958388,1783065411000,88538.07393745,0.000219,120]
[426958392,1783065475000,-151.0,0.00020439,2]
[426958393,1783065475000,-1108.31215925,0.00020439,2]
[426958390,1783065475000,-303.55384241,0.00020387,2]
[426958391,1783065475000,-1100.0,0.00020438,2]
[426958389,1783065475000,-182.60383973,0.00020337,2]
[426958407,1783065738000,-475.02,0.0002389,120]
[426958406,1783065738000,-475.02,0.0002389,120]
[426958404,1783065738000,-475.02,0.0002389,120]
[426958405,1783065738000,-475.02,0.0002389,120]
[426958398,1783065738000,-42831.56446255,0.000219,120]
[426958401,1783065738000,-475.02,0.0002389,120]
[426958402,1783065738000,-475.02,0.0002389,120]
[426958400,1783065738000,-475.02,0.0002389,120]
[426958399,1783065738000,-13947.8295,0.00023322,120]
[426958408,1783065738000,-475.02,0.0002389,120]
[426958403,1783065738000,-475.02,0.0002389,120]
[426958409,1783065738000,-475.02,0.0002389,120]
[426958416,1783065738000,-475.02,0.0002389,120]
[426958411,1783065738000,-475.02,0.0002389,120]
[426958413,1783065738000,-475.02,0.0002389,120]
[426958412,1783065738000,-475.02,0.0002389,120]
[426958414,1783065738000,-475.02,0.0002389,120]
[426958415,1783065738000,-475.02,0.0002389,120]
[426958419,1783065738000,-475.03,0.0002389,120]
[426958418,1783065738000,-475.02,0.0002389,120]
[426958420,1783065738000,-234.032967,0.00024499,120]
[426958422,1783065738000,-3000.0,0.0002569,120]
[426958421,1783065738000,-289.11,0.00025651,120]
[426958423,1783065738000,-728.91394347,0.0002569,120]
[426958410,1783065738000,-475.02,0.0002389,120]
[426958417,1783065738000,-475.02,0.0002389,120]
[426958425,1783065739000,-1787.3,0.00028082,120]
[426958424,1783065739000,-1915.98787075,0.0002569,120]
[426958427,1783065739000,-5022.0,0.0003,120]
[426958429,1783065739000,-160.0,0.0003,120]
[426958428,1783065739000,-290.0,0.0003,120]
[426958430,1783065739000,-160.0,0.0003,120]
[426958426,1783065739000,-289.11,0.00028501,120]
[426958432,1783065745000,5000.0,0.00030137,120]
[426958431,1783065745000,5000.0,0.00030137,120]
[426958434,1783065748000,571.94924444,0.00030136,120]
[426958433,1783065748000,500.0,0.00030136,120]
[426958436,1783065753000,1781.21,0.00030137,120]
[426958435,1783065753000,1781.21,0.00030137,120]
[426958437,1783065759000,718.31,0.00027397,120]
[426958438,1783065768000,475.02,0.0002389,120]
[426958440,1783066042000,181.48,0.0002915,120]
[426958442,1783066050000,281.32,0.00029249,120]
[426958441,1783066050000,281.32,0.0002659,120]
[426958443,1783066094000,262.698041,0.00024304,120]
[426958444,1783066141000,2000.0,0.00030136,120]
[426958474,1783066232000,-12791.1952339,0.00020439,2]
[426958470,1783066232000,-299.8962908,0.00020439,2]
[426958472,1783066232000,-764.92987787,0.00020439,2]
[426958471,1783066232000,-257.45648986,0.00020439,2]
[426958468,1783066232000,-250.0,0.00020439,2]
[426958469,1783066232000,-184.09373157,0.00020439,2]
[426958466,1783066232000,-194.07059188,0.00020438,2]
[426958465,1783066232000,-257.97726719,0.00020438,2]
[426958464,1783066232000,-21.29226783,0.00020438,2]
[426958455,1783066232000,-154.0,0.00016727,2]
[426958461,1783066232000,-150.0,0.00020361,2]
[426958459,1783066232000,-400.52807835,0.00019,2]
[426958462,1783066232000,-99.47192165,0.00020438,2]
[426958460,1783066232000,-500.0,0.00019753,2]
[426958457,1783066232000,-4888.71828143,0.00019,2]
[426958458,1783066232000,-1254.09285305,0.00019,2]
[426958473,1783066232000,-4246.50542212,0.00020439,2]
[426958456,1783066232000,-456.66078717,0.00019,2]
[426958453,1783066232000,-656.0,0.000164,2]
[426958454,1783066232000,-150.0,0.00016563,2]
[426958463,1783066232000,-1000.52807835,0.00020438,2]
[426958475,1783066232000,-8621.2642854,0.00020439,2]
[426958467,1783066232000,-55.92940812,0.00020438,2]
[426958476,1783066232000,-3720.035637,0.00020439,2]
[426958477,1783066232000,-1244.996909,0.00020439,10]
[426958498,1783066232000,-187.16,0.00021752,2]
[426958496,1783066232000,-329.84,0.0002169,2]
[426958497,1783066232000,-500.0,0.00021691,2]
[426958495,1783066232000,-7580.53,0.00021675,2]
[426958492,1783066232000,-2543.05,0.00021509,2]
[426958493,1783066232000,-3646.96536499,0.00021652,2]
[426958490,1783066232000,-12256.29,0.00021463,2]
[426958491,1783066232000,-3413.46,0.00021509,2]
[426958488,1783066232000,-3769.18,0.0002134,2]
[426958494,1783066232000,-368.71907251,0.00021652,2]
[426958487,1783066232000,-150.0,0.00021318,2]
[426958489,1783066232000,-621.0,0.00021419,2]
[426958479,1783066232000,-20657.770399,0.00020457,2]
[426958478,1783066232000,-30896.74280253,0.00020456,2]
[426958480,1783066232000,-150.9633023,0.00020457,2]
[426958481,1783066232000,-3275.3369829,0.00020457,2]
[426958483,1783066232000,-2002.61849759,0.00021093,2]
[426958485,1783066232000,-8221.92,0.0002125,2]
[426958484,1783066232000,-12341.26,0.00021221,2]
[426958486,1783066232000,-281.32,0.00021272,2]
[426958482,1783066232000,-506.0,0.00020932,2]
[426958515,1783066233000,-848.73811569,0.00022355,2]
[426958519,1783066233000,-400.0,0.00022358,2]
[426958518,1783066233000,-200.0,0.00022358,2]
[426958520,1783066233000,-5000.0,0.00022358,2]
[426958522,1783066233000,-200.0,0.00022465,2]
[426958521,1783066233000,-500.0,0.00022367,3]
[426958527,1783066233000,-150.33778621,0.00022482,2]
[426958523,1783066233000,-1787.3,0.00022465,2]
[426958526,1783066233000,-600.0,0.00022482,2]
[426958525,1783066233000,-500.23,0.00022466,2]
[426958528,1783066233000,-250.0,0.00022482,2]
[426958530,1783066233000,-500.0,0.00022482,2]
[426958514,1783066233000,-151.26188431,0.00022355,2]
[426958524,1783066233000,-797.39,0.00022466,2]
[426958516,1783066233000,-200.0,0.00022358,2]
[426958502,1783066233000,-4000.0,0.00021752,2]
[426958512,1783066233000,-1852.42,0.00022314,2]
[426958513,1783066233000,-265.51,0.00022338,2]
[426958511,1783066233000,-317.42705992,0.00022306,2]
[426958510,1783066233000,-689.98683155,0.00022306,2]
[426958509,1783066233000,-4000.0,0.00022296,2]
[426958508,1783066233000,-2438.87,0.00022286,2]
[426958507,1783066233000,-3646.96536491,0.00022213,2]
[426958506,1783066233000,-3121.0,0.00022,2]
[426958503,1783066233000,-200.0,0.00021799,2]
[426958505,1783066233000,-12629.38,0.00022,5]
[426958504,1783066233000,-158.07,0.00021904,2]
[426958501,1783066233000,-181.48,0.00021752,2]
[426958500,1783066233000,-4605.23,0.00021752,2]
[426958499,1783066233000,-11491.17,0.00021752,2]
[426958517,1783066233000,-200.0,0.00022358,2]
[426958531,1783066233000,-352.285,0.0002269,7]
[426958529,1783066233000,-200.42489203,0.00022482,2]
[426958534,1783066233000,-289.11,0.000228,2]
[426958532,1783066233000,-217.96810301,0.00022727,2]
[426958564,1783066233000,-8045.0,0.00023307,2]
[426958563,1783066233000,-2027.08896817,0.00023307,2]
[426958560,1783066233000,-500.0,0.00021751,2]
[426958561,1783066233000,-500.0,0.00021751,2]
[426958562,1783066233000,-500.0,0.00021751,2]
[426958559,1783066233000,-23.0,0.00021751,2]
[426958558,1783066233000,-477.0,0.00021751,2]
[426958557,1783066233000,-500.0,0.00021751,2]
[426958555,1783066233000,-1269.52804713,0.00023307,2]
[426958556,1783066233000,-500.0,0.00023307,2]
[426958551,1783066233000,-319.77833425,0.00021751,2]
[426958553,1783066233000,-29332.59629164,0.00023307,2]
[426958552,1783066233000,-500.0,0.00021751,2]
[426958550,1783066233000,-547.60777743,0.00023307,2]
[426958554,1783066233000,-1015.79310861,0.00023307,2]
[426958548,1783066233000,-514.59315797,0.00023306,2]
[426958533,1783066233000,-3646.96536491,0.00022774,2]
[426958535,1783066233000,-4000.0,0.0002284,2]
[426958536,1783066233000,-151.0,0.00022953,7]
[426958547,1783066233000,-500.0,0.00023306,2]
[426958538,1783066233000,-751.5772035,0.00023207,2]
[426958540,1783066233000,-500.0,0.00023306,2]
[426958542,1783066233000,-500.0,0.00023306,2]
[426958537,1783066233000,-166.75,0.00023008,2]
[426958539,1783066233000,-4241.74074252,0.00023207,2]
[426958544,1783066233000,-171.67353243,0.00023306,2]
[426958543,1783066233000,-500.0,0.00023306,2]
[426958545,1783066233000,-500.0,0.00023306,2]
[426958549,1783066233000,-255.50012455,0.00023306,2]
[426958546,1783066233000,-500.0,0.00023306,2]
[426958541,1783066233000,-500.0,0.00023306,2]
[426958586,1783066238000,-500.0,0.00021751,2]
[426958587,1783066238000,-500.0,0.00021751,2]
[426958583,1783066238000,-500.0,0.00021751,2]
[426958578,1783066238000,-500.0,0.00021751,2]
[426958579,1783066238000,-500.0,0.00021751,2]
[426958580,1783066238000,-500.0,0.00021751,2]
[426958577,1783066238000,-500.0,0.00021751,2]
[426958588,1783066238000,-500.0,0.00021751,2]
[426958582,1783066238000,-500.0,0.00021751,2]
[426958584,1783066238000,-500.0,0.00021751,2]
[426958581,1783066238000,-500.0,0.00021751,2]
[426958589,1783066238000,-500.0,0.00021751,2]
[426958585,1783066238000,-500.0,0.00021751,2]
[426958595,1783066238000,-500.0,0.00021751,2]
[426958596,1783066238000,-500.0,0.00021751,2]
[426958599,1783066238000,-500.0,0.00021751,2]
[426958594,1783066238000,-500.0,0.00021751,2]
[426958598,1783066238000,-500.0,0.00021751,2]
[426958597,1783066238000,-500.0,0.00021751,2]
[426958592,1783066238000,-476.40444369,0.00021751,2]
[426958593,1783066238000,-500.0,0.00021751,2]
[426958591,1783066238000,-500.0,0.00021751,2]
[426958590,1783066238000,-500.0,0.00021751,2]
[426958632,1783066239000,-213.729035,0.00023691,14]
[426958623,1783066239000,-151.0,0.0002332,7]
[426958627,1783066239000,-4000.0,0.00023384,2]
[426958626,1783066239000,-180.85504087,0.00023352,7]
[426958628,1783066239000,-500.0,0.000234,2]
[426958629,1783066239000,-4993.317946,0.00023595,2]
[426958631,1783066239000,-207.514801,0.00023691,14]
[426958625,1783066239000,-3646.96536491,0.00023335,2]
[426958633,1783066239000,-225.51,0.00023715,2]
[426958638,1783066239000,-223.001275,0.00023818,14]
[426958635,1783066239000,-234.032968,0.00023716,14]
[426958634,1783066239000,-207.514802,0.00023716,14]
[426958637,1783066239000,-157.47,0.00023743,2]
[426958624,1783066239000,-2000.0,0.00023323,2]
[426958636,1783066239000,-158.07,0.0002373,2]
[426958640,1783066239000,-477.27931427,0.00023852,7]
[426958641,1783066239000,-645.7671,0.00023852,7]
[426958645,1783066239000,-281.32,0.00023931,2]
[426958643,1783066239000,-3646.96536491,0.00023896,2]
[426958630,1783066239000,-150.0,0.00023626,2]
[426958622,1783066239000,-1114.1237517,0.00023307,2]
[426958616,1783066239000,-505.0347142,0.00023307,2]
[426958621,1783066239000,-34799.39229364,0.00023307,2]
[426958642,1783066239000,-203.83052158,0.00023882,2]
[426958600,1783066239000,-500.0,0.00021751,2]
[426958601,1783066239000,-500.0,0.00021751,2]
[426958602,1783066239000,-500.0,0.00021751,2]
[426958603,1783066239000,-500.0,0.00021751,2]
[426958604,1783066239000,-500.0,0.00021751,2]
[426958605,1783066239000,-500.0,0.00021751,2]
[426958606,1783066239000,-500.0,0.00021999,2]
[426958607,1783066239000,-808.119,0.00022416,7]
[426958619,1783066239000,-564.0886184,0.00023307,2]
[426958610,1783066239000,-3413.72881297,0.00023307,2]
[426958609,1783066239000,-2500.0,0.00023207,2]
[426958611,1783066239000,-714.75036099,0.00023307,2]
[426958613,1783066239000,-331.64,0.00023307,2]
[426958612,1783066239000,-1094.0,0.00023307,2]
[426958615,1783066239000,-37047.66787175,0.00023307,2]
[426958614,1783066239000,-170547.46012442,0.00023307,2]
[426958617,1783066239000,-3514.40529108,0.00023307,2]
[426958618,1783066239000,-4730.98108796,0.00023307,2]
[426958620,1783066239000,-504.27096291,0.00023307,2]
[426958608,1783066239000,-1464.33194396,0.00023207,2]
[426958639,1783066239000,-319.04972953,0.00023852,7]
[426958647,1783066239000,-1286.47962741,0.00024,3]
[426958681,1783066239000,-500.0,0.00024172,2]
[426958671,1783066239000,-500.0,0.00024172,2]
[426958673,1783066239000,-500.0,0.00024172,2]
[426958672,1783066239000,-500.0,0.00024172,2]
[426958690,1783066239000,-9999.99,0.00024174,2]
[426958674,1783066239000,-500.0,0.00024172,2]
[426958676,1783066239000,-500.0,0.00024172,2]
[426958677,1783066239000,-500.0,0.00024172,2]
[426958678,1783066239000,-501.46422919,0.00024172,2]
[426958679,1783066239000,-500.0,0.00024172,2]
[426958669,1783066239000,-500.0,0.00024172,2]
[426958680,1783066239000,-500.0,0.00024172,2]
[426958685,1783066239000,-904.65,0.00024174,2]
[426958684,1783066239000,-150.99,0.00024174,2]
[426958682,1783066239000,-24072.29,0.00024174,2]
[426958687,1783066239000,-499.99,0.00024174,2]
[426958688,1783066239000,-9999.99,0.00024174,2]
[426958691,1783066239000,-4999.99,0.00024174,2]
[426958686,1783066239000,-9999.99,0.00024174,2]
[426958689,1783066239000,-3674.79,0.00024174,2]
[426958644,1783066239000,-4000.0,0.00023927,2]
[426958683,1783066239000,-9999.99,0.00024174,2]
[426958670,1783066239000,-500.0,0.00024172,2]
[426958675,1783066239000,-510.06722813,0.00024172,2]
[426958663,1783066239000,-500.0,0.00024172,2]
[426958650,1783066239000,-150.0,0.00024115,4]
[426958646,1783066239000,-4993.317946,0.00023983,2]
[426958649,1783066239000,-269.36,0.0002411,2]
[426958648,1783066239000,-150.0,0.00024,2]
[426958652,1783066239000,-150.0,0.00024115,4]
[426958668,1783066239000,-500.0,0.00024172,2]
[426958655,1783066239000,-150.0,0.00024115,4]
[426958654,1783066239000,-150.0,0.00024115,4]
[426958656,1783066239000,-150.0,0.00024115,4]
[426958653,1783066239000,-150.0,0.00024115,4]
[426958651,1783066239000,-260.03445119,0.00024115,4]
[426958658,1783066239000,-167.35133042,0.00024115,4]
[426958657,1783066239000,-150.0,0.00024115,4]
[426958661,1783066239000,-500.0,0.00024172,2]
[426958662,1783066239000,-500.0,0.00024172,2]
[426958660,1783066239000,-150.0,0.00024115,4]
[426958659,1783066239000,-150.0,0.00024115,4]
[426958664,1783066239000,-500.0,0.00024172,2]
[426958665,1783066239000,-500.0,0.00024172,2]
[426958667,1783066239000,-500.0,0.00024172,2]
[426958666,1783066239000,-500.0,0.00024172,2]
[426958731,1783066240000,-151.0,0.00024719,2]
[426958732,1783066240000,-151.0,0.00024719,2]
[426958728,1783066240000,-151.0,0.00024719,2]
[426958727,1783066240000,-151.0,0.00024719,2]
[426958729,1783066240000,-151.0,0.00024719,2]
[426958725,1783066240000,-151.0,0.00024719,2]
[426958730,1783066240000,-151.0,0.00024719,2]
[426958724,1783066240000,-151.0,0.00024719,2]
[426958721,1783066240000,-151.0,0.00024719,2]
[426958723,1783066240000,-151.0,0.00024719,2]
[426958726,1783066240000,-151.0,0.00024719,2]
[426958736,1783066240000,-150.0,0.00024785,7]
[426958746,1783066240000,-188.89966476,0.00024908,2]
[426958734,1783066240000,-4993.317946,0.00024759,2]
[426958737,1783066240000,-150.0,0.00024785,7]
[426958739,1783066240000,-151.0,0.00024797,7]
[426958740,1783066240000,-32701.7697,0.000248,2]
[426958742,1783066240000,-150.0,0.00024897,7]
[426958743,1783066240000,-552.25396728,0.00024899,2]
[426958741,1783066240000,-184.05,0.00024843,2]
[426958738,1783066240000,-151.0,0.00024791,7]
[426958745,1783066240000,-500.0,0.000249,9]
[426958744,1783066240000,-280.85,0.000249,2]
[426958722,1783066240000,-151.0,0.00024719,2]
[426958735,1783066240000,-150.0,0.00024785,7]
[426958719,1783066240000,-151.0,0.00024719,2]
[426958696,1783066240000,-166.75,0.00024273,2]